bitfinex-derivatives/quotes_SOLF0:USTF0_20250816
["timestamp","ask_amount","ask_price","bid_price","bid_amount"]
[1755366566263,2.9,187.9,187.88,2.89]
[1755366566568,2.9,187.89,187.88,2.89]
[1755366566768,8.218,187.91,187.88,2.89]
[1755366566965,2.9,187.9,187.88,2.89]
[1755366569269,2.9,187.89,187.88,2.89]
[1755366572572,8.2185,187.89,187.88,2.89]
[1755366573171,2.9,187.89,187.88,2.89]
[1755366573768,5.318,187.91,187.88,2.89]
[1755366573973,2.9,187.92,187.87,2.54309913]
[1755366574174,6.95632818,187.91,187.87,2.54309913]
[1755366574371,2.9,187.91,187.88,8.2085]
[1755366574572,2.9,187.91,187.89,2.89]
[1755366575070,2.9,187.91,187.89,8.2084]
[1755366575275,2.9,187.91,187.9,2.89]
[1755366575574,6.95586397,187.91,187.9,2.89]
[1755366576675,6.95586397,187.91,187.9,4.51697047]
[1755366577174,4.05586397,187.91,187.9,4.51697047]
[1755366577473,6.95586397,187.91,187.9,4.51697047]
[1755366579081,4.05586397,187.91,187.9,4.51697047]
[1755366579878,2.9,187.91,187.9,4.51697047]
[1755366580976,2.9,187.91,187.9,9.83517047]
[1755366582076,2.9,187.93,187.9,6.94517047]
[1755366582381,6.95404645,187.92,187.91,2.89]
[1755366583281,2.9,187.92,187.91,2.89]
[1755366583777,2.9,187.94,187.91,2.89]
[1755366583983,2.9,187.95,187.94,2.89]
[1755366584181,6.95407748,187.95,187.94,2.89]
[1755366585380,2.9,187.95,187.94,2.89]
[1755366587186,2.9,187.95,187.94,8.207]
[1755366589879,2.95,187.97,187.94,8.207]
[1755366590086,2.95,187.97,187.95,4.74697047]
[1755366590280,2.95,187.97,187.96,3.12]
[1755366590582,12.31524506,187.97,187.96,3.12]
[1755366593287,5.3165,187.96,187.95,4.74697047]
[1755366593487,8.2665,187.96,187.95,4.74697047]
[1755366594283,2.95,187.96,187.95,4.74697047]
[1755366597490,8.2663,187.97,187.96,3.12]
[1755366600392,2.95,187.97,187.85,42.0]
[1755366600694,2.95,187.95,187.91,4.74697047]
[1755366600899,2.95,187.99,187.94,3.12]
[1755366601198,2.95,187.95,187.94,3.12]
[1755366601495,6.99929321,187.95,187.93,1.62697047]
[1755366601685,6.99929321,187.95,187.93,4.74697047]
[1755366601686,2.95,187.95,187.93,4.74697047]
[1755366602894,2.95,187.95,187.94,3.12]
[1755366603792,5.317,187.94,187.93,1.62697047]
[1755366603992,2.95,187.93,187.84,3.12]
[1755366604193,2.95,187.93,187.89,3.12]
[1755366604795,2.95,187.93,187.9,3.12]
[1755366604995,2.95,187.91,187.9,3.12]
[1755366606196,8.2679,187.91,187.9,3.12]
[1755366606399,5.3179,187.91,187.9,3.12]
[1755366606598,8.2679,187.91,187.9,3.12]
[1755366608094,5.3182,187.9,187.88,1.62697047]
[1755366608401,2.95,187.94,187.88,1.62697047]
[1755366608588,5.318,187.91,187.88,1.62697047]
[1755366608790,8.268,187.91,187.88,1.62697047]
[1755366608999,8.268,187.91,187.89,3.12]
[1755366610393,5.318,187.91,187.89,3.12]
[1755366610592,2.95,187.9,187.89,3.12]
[1755366611501,8.2682,187.9,187.89,3.12]
[1755366611896,2.95,187.9,187.89,3.12]
[1755366612497,5.318,187.91,187.89,4.74697047]
[1755366612800,5.318,187.91,187.9,3.12]
[1755366613004,8.268,187.91,187.9,3.12]
[1755366620312,2.9,187.96,187.9,3.12]
[1755366620613,6.95515251,187.95,187.93,2.97]
[1755366620812,4.05515251,187.94,187.93,2.97]
[1755366621111,2.9,187.97,187.93,2.97]
[1755366621405,6.95461003,187.96,187.95,2.97]
[1755366622702,4.05461003,187.96,187.95,2.97]
[1755366623109,5.316,187.98,187.95,2.97]
[1755366623409,2.9,187.96,187.95,2.97]
[1755366626010,2.9,187.96,187.94,4.59697047]
[1755366626610,8.2168,187.95,187.94,4.59697047]
[1755366627812,8.2168,187.95,187.94,1.62697047]
[1755366628609,8.2168,187.95,187.94,4.59697047]
[1755366629811,2.9,187.95,187.94,4.59697047]
[1755366630715,8.2168,187.95,187.94,4.59697047]
[1755366631814,2.9,187.95,187.94,4.59697047]
[1755366635317,5.3166,187.96,187.94,4.59697047]
[1755366635518,8.2166,187.96,187.95,2.97]
[1755366636015,5.3166,187.96,187.95,2.97]
[1755366636713,5.3163,187.97,187.95,2.97]
[1755366636920,5.3163,187.97,187.96,4.59697047]
[1755366638620,5.3163,187.97,187.96,2.97]
[1755366639318,2.9,187.99,187.96,2.97]
[1755366639716,2.9,187.99,187.97,5.316]
[1755366639918,2.9,187.99,187.97,8.286]
[1755366640320,5.3157,187.99,187.96,2.97]
[1755366640523,2.9,187.98,187.96,2.97]
[1755366641125,2.9,187.97,187.92,2.54024053]
[1755366641322,2.9,187.97,187.94,2.97]
[1755366642022,2.9,187.95,187.94,2.97]
[1755366647724,2.9,187.95,187.94,8.2871]
[1755366648133,2.9,187.95,187.92,2.54024053]
[1755366648327,2.9,187.95,187.94,2.97]
[1755366649923,5.3168,187.95,187.92,2.54024053]
[1755366650131,5.3168,187.95,186.45,1838.0]
[1755366650132,2.93,187.94,187.9,3.07]
[1755366650729,2.93,187.94,187.91,3.07]
[1755366651224,5.3175,187.93,187.91,3.07]
[1755366651429,2.93,187.92,187.88,3.07]
[1755366652031,8.2477,187.92,187.88,8.3886]
[1755366652330,2.93,187.91,187.9,3.07]
[1755366655833,4.46913209,187.98,187.9,3.07]
[1755366656034,2.93,187.92,187.9,3.07]
[1755366656437,2.93,187.91,187.9,3.07]
[1755366659036,2.93,187.91,187.89,3.07]
[1755366660141,2.93,187.91,187.85,2.54024053]
[1755366660342,4.03703044,187.9,187.85,3.07]
[1755366660544,2.93,187.88,187.85,5.3194]
[1755366660744,2.54024053,187.95,187.81,129.06]
[1755366660745,2.93,187.92,187.86,2.54024053]
[1755366661050,2.93,187.91,187.9,3.07]
[1755366661847,2.93,187.93,187.9,3.07]
[1755366663349,2.93,187.93,187.91,3.07]
[1755366664047,2.93,187.93,187.9,3.07]
[1755366664253,2.93,187.93,187.87,3.07]
[1755366664644,8.248,187.91,187.87,3.07]
[1755366664849,2.93,187.9,187.87,3.07]
[1755366665349,5.3184,187.9,187.87,3.07]
[1755366665548,2.93,187.88,187.87,3.07]
[1755366666147,2.93,187.94,187.9,3.07]
[1755366666348,89.44416356,188.05,187.9,3.07]
[1755366666349,2.93,187.96,187.9,3.07]
[1755366666547,4.03585566,187.95,187.9,3.07]
[1755366666750,2.93,187.94,187.9,3.07]
[1755366667255,2.93,187.93,187.92,3.07]
[1755366668052,2.93,187.94,187.92,3.07]
[1755366668254,2.93,187.93,187.92,3.07]
[1755366669651,2.93,187.93,187.9,3.07]
[1755366669954,2.93,187.91,187.86,5.61024053]
[1755366670153,2.93,187.91,187.87,3.07]
[1755366670549,5.3188,187.88,187.87,3.07]
[1755366670851,8.2488,187.88,187.87,3.07]
[1755366673354,4.46913209,187.95,187.84,3.07]
[1755366673355,5.47024053,187.94,187.84,3.07]
[1755366673560,2.93,187.92,187.84,3.07]
[1755366673757,4.03310027,187.91,187.84,3.07]
[1755366674053,8.2496,187.85,187.84,3.07]
[1755366675061,5.3194,187.86,187.84,3.07]
[1755366675257,2.93,187.93,187.84,3.07]
[1755366675456,2.93,187.91,187.84,3.07]
[1755366675959,5.3187,187.89,187.85,5.3195]
[1755366676161,2.93,187.89,187.86,3.07]
[1755366676660,4.46913209,187.95,187.86,3.07]
[1755366676860,2.93,187.88,187.86,3.07]
[1755366677259,8.2488,187.88,187.86,3.07]
[1755366677456,4.46913209,187.96,187.87,5.319]
[1755366677657,2.93,187.94,187.88,3.07]
[1755366677957,2.93,187.92,187.88,3.07]
[1755366678455,7.00937262,187.97,187.88,3.07]
[1755366678649,2.93,187.91,187.88,3.07]
[1755366678849,3.02,187.96,187.88,2.85]
[1755366679053,3.02,187.94,187.88,2.85]
[1755366679258,5.3184,187.9,187.86,2.54024053]
[1755366679458,8.3384,187.9,187.89,2.85]
[1755366681166,3.02,187.95,187.86,2.85]
[1755366681464,3.02,187.93,187.86,2.85]
[1755366682264,3.02,187.87,187.85,5.3196]
[1755366682763,3.02,187.87,187.86,2.85]
[1755366685567,5.3186,187.89,187.86,2.85]
[1755366685866,3.02,187.88,187.86,2.85]
[1755366686369,5.3183,187.9,187.86,2.85]
[1755366686568,5.3183,187.9,187.86,5.39024053]
[1755366686769,5.3183,187.9,187.86,2.54024053]
[1755366686971,5.318,187.91,187.87,5.3189]
[1755366687173,8.338,187.91,187.88,2.85]
[1755366687470,3.02,187.96,187.88,2.85]
[1755366687669,3.02,187.92,187.84,2.85]
[1755366687873,3.02,187.9,187.84,2.85]
[1755366688073,3.02,187.89,187.87,2.85]
[1755366690475,3.02,187.95,187.87,2.85]
[1755366690675,3.02,187.93,187.87,2.85]
[1755366690877,3.02,187.91,187.88,2.85]
[1755366691076,3.02,187.91,187.87,2.85]
[1755366692075,5.3187,187.89,187.87,2.85]
[1755366692375,3.02,187.88,187.87,2.85]
[1755366692876,8.3388,187.88,187.87,2.85]
[1755366694268,3.02,187.87,187.84,8.1698]
[1755366694471,5.3188,187.88,187.84,5.3198]
[1755366694769,3.02,187.86,187.83,7.86034053]
[1755366695172,3.02,187.86,187.84,2.85]
[1755366696783,7.48913209,187.93,187.83,2.85]
[1755366696977,8.51241646,187.92,187.83,2.85]
[1755366697177,3.02,187.9,187.83,2.85]
[1755366697377,3.02,187.84,187.8,131.68024053]
[1755366698080,3.02,187.84,187.81,2.85]
[1755366698285,8.3399,187.84,187.81,2.85]
[1755366699479,3.02,187.84,187.81,2.85]
[1755366700481,3.02,187.84,187.81,5.3207]
[1755366700676,3.02,187.84,187.82,2.85]
[1755366702081,3.02,187.84,187.82,8.1704]
[1755366702285,3.02,187.85,187.83,2.85]
[1755366702686,3.02,187.91,187.84,2.85]
[1755366702886,7.06213246,187.9,187.84,2.85]
[1755366703186,3.02,187.88,187.85,5.3196]
[1755366703386,3.02,187.88,187.86,2.85]
[1755366704786,3.02,187.88,187.86,5.3191]
[1755366704982,3.02,187.88,187.87,2.85]
[1755366705385,3.02,187.89,187.87,2.85]
[1755366705586,3.02,187.88,187.87,2.85]
[1755366708682,2.82,187.9,187.84,2.86]
[1755366709288,2.82,187.9,187.88,2.86]
[1755366709493,2.82,187.9,187.89,2.86]
[1755366709787,2.82,187.92,187.89,8.1785]
[1755366709991,6.86511359,187.91,187.9,2.86]
[1755366713595,2.82,187.9,187.84,2.86]
[1755366713891,4.04695024,187.89,187.84,2.86]
[1755366714087,8.1392,187.87,187.84,2.86]
[1755366714292,4.04695024,187.88,187.84,2.86]
[1755366714293,2.82,187.86,187.84,2.86]
[1755366714691,2.54024053,187.91,187.81,5.3207]
[1755366714902,2.82,187.89,187.82,2.86]
[1755366715098,2.82,187.87,187.82,2.86]
[1755366715293,2.82,187.85,187.79,2.86]
[1755366715494,2.82,187.82,187.81,2.86]
[1755366718498,8.1405,187.82,187.81,2.86]
[1755366719707,2.82,187.82,187.81,2.86]
[1755366723004,2.82,187.82,187.81,8.1807]
[1755366723512,2.82,187.88,187.81,2.54024053]
[1755366723707,2.82,187.91,187.84,2.54024053]
[1755366723907,2.82,187.89,187.85,2.86]
[1755366724206,4.05490304,187.88,187.85,2.86]
[1755366724408,2.82,187.89,187.86,5.3191]
[1755366724609,2.82,187.89,187.87,2.86]
[1755366725108,2.82,187.88,187.87,2.86]
[1755366726403,2.82,187.88,187.87,8.179]
[1755366728913,2.82,187.88,187.87,2.86]
[1755366730610,2.82,187.88,187.85,5.3195]
[1755366730807,2.82,187.88,187.86,2.86]
[1755366731308,2.82,187.88,187.85,2.86]
[1755366731514,2.82,187.88,187.82,2.86]
[1755366732012,2.82,187.88,187.81,2.54024053]
[1755366732013,2.82,187.87,187.84,2.86]
[1755366732213,2.82,187.87,187.85,2.86]
[1755366732814,2.82,187.87,187.83,5.3202]
[1755366733114,2.82,187.87,187.86,2.86]
[1755366733615,2.82,187.92,187.86,2.86]
[1755366733814,2.82,187.9,187.86,2.86]
[1755366734017,2.82,187.88,187.86,2.86]
[1755366736412,2.82,187.88,187.8,2.54024053]
[1755366736716,2.82,187.88,187.81,2.86]
[1755366737118,2.82,187.85,187.83,2.86]
[1755366738117,2.82,187.85,187.83,8.18]
[1755366738318,2.82,187.85,187.84,2.86]
[1755366742421,2.82,187.85,187.82,5.3204]
[1755366742626,2.99,187.84,187.81,2.88]
[1755366743323,2.99,187.82,187.81,2.88]
[1755366747027,8.3105,187.82,187.79,2.88]
[1755366747229,2.99,187.81,187.8,2.88]
[1755366750326,4.47485786,187.9,187.8,2.88]
[1755366750626,2.99,187.88,187.8,2.88]
[1755366750830,2.99,187.86,187.81,2.88]
[1755366751030,7.05298302,187.85,187.81,2.88]
[1755366751221,2.99,187.84,187.82,5.3204]
[1755366751626,2.99,187.84,187.83,2.88]
[1755366754533,2.99,187.84,187.83,5.3202]
[1755366754835,2.99,187.9,187.84,2.88]
[1755366755031,2.99,187.88,187.84,2.88]
[1755366755235,2.99,187.86,187.84,2.88]
[1755366755535,2.99,187.85,187.84,2.88]
[1755366756031,4.47485786,187.92,187.8,2.54024053]
[1755366756233,2.99,187.9,187.84,2.88]
[1755366756431,2.99,187.88,187.84,2.88]
[1755366757124,2.99,187.87,187.86,5.3193]
[1755366757734,2.99,187.87,187.86,8.1993]
[1755366760338,2.99,187.89,187.86,5.3193]
[1755366760536,2.99,187.89,187.88,2.88]
[1755366760736,7.05466105,187.89,187.88,2.88]
[1755366761835,2.99,187.89,187.88,2.88]
[1755366763337,2.99,187.89,187.87,2.88]
[1755366763538,2.99,187.89,187.86,8.1993]
[1755366763737,2.99,187.89,187.86,5.3193]
[1755366764036,2.99,187.89,187.87,2.88]
[1755366764840,2.99,187.89,187.88,2.88]
[1755366767141,4.47485786,187.96,187.89,2.88]
[1755366767341,4.0651464,187.95,187.89,2.88]
[1755366767530,4.0651464,187.94,187.89,2.88]
[1755366767839,2.99,187.91,187.89,2.88]
[1755366768035,2.99,187.91,187.88,5.3188]
[1755366768036,2.99,187.91,187.9,2.88]
[1755366768439,4.06503765,187.91,187.9,2.88]
[1755366768638,4.06503765,187.91,187.9,8.1982]
[1755366769542,2.99,187.92,187.9,8.1982]
[1755366769841,3.03,187.91,187.9,5.3182]
[1755366770030,5.3173,187.94,187.9,5.3182]
[1755366770235,4.06432708,187.93,187.91,2.92]
[1755366770535,3.03,187.93,187.92,2.92]
[1755366770736,7.09373238,187.93,187.92,2.92]
[1755366771240,3.03,187.93,187.92,2.92]
[1755366774141,3.03,187.93,187.9,5.3181]
[1755366774342,3.03,187.93,187.91,2.92]
[1755366775140,5.3174,187.93,187.91,2.92]
[1755366775344,3.03,187.92,187.89,10.77844053]
[1755366775546,3.03,187.92,187.9,2.92]
[1755366776243,8.3476,187.92,187.9,2.92]
[1755366776445,3.03,187.91,187.9,2.92]
[1755366777749,3.03,187.92,187.9,2.92]
[1755366778948,3.03,187.92,187.9,8.2382]
[1755366779149,3.03,187.92,187.91,2.92]
[1755366780049,3.03,187.98,187.92,2.92]
[1755366780246,4.05830568,187.97,187.92,2.92]
[1755366780545,3.03,187.95,187.92,2.92]
[1755366780745,3.03,187.96,187.92,2.92]
[1755366781246,3.03,187.98,187.95,2.92]
[1755366781451,3.03,187.97,187.95,2.92]
[1755366781847,3.03,187.98,187.96,2.92]
[1755366782655,3.03,187.97,187.96,2.92]
[1755366783254,3.03,187.99,187.97,2.92]
[1755366784154,3.03,188.05,187.96,2.92]
[1755366784352,3.03,188.05,187.99,2.92]
[1755366784743,5.3136,188.07,188.02,5.3148]
[1755366784948,3.03,188.06,188.03,2.92]
[1755366785149,5.3136,188.07,188.03,2.92]
[1755366785447,3.03,188.04,188.03,2.92]
[1755366785844,3.03,188.04,187.98,2.92]
[1755366787157,3.03,188.01,187.94,2.54024053]
[1755366787453,3.03,188.01,187.95,2.92]
[1755366787653,3.03,187.99,187.98,2.92]
[1755366789056,3.03,187.99,187.9,2.92]
[1755366789252,2.54024053,188.06,187.96,2.92]
[1755366789452,3.03,187.98,187.96,2.92]
[1755366789654,2.54024053,188.06,187.96,2.92]
[1755366789857,3.03,187.97,187.96,2.92]
[1755366790355,3.03,188.05,187.97,2.92]
[1755366790855,5.3154,188.0,187.97,5.3162]
[1755366791055,3.03,187.99,187.98,2.92]
[1755366791755,3.03,187.99,187.97,5.3162]
[1755366791959,3.03,187.99,187.97,2.92]
[1755366793354,3.03,187.99,187.98,2.92]
[1755366802464,2.88,187.97,187.96,2.9]
[1755366802665,2.88,187.97,187.94,2.9]
[1755366803058,2.88,187.97,187.95,2.9]
[1755366803467,2.88,187.97,187.93,4.5257931]
[1755366803669,2.88,187.97,187.93,2.9]
[1755366804060,2.88,187.97,187.91,4.5257931]
[1755366804259,2.88,187.92,187.91,2.9]
[1755366804464,2.88,187.92,187.9,2.9]
[1755366804964,2.88,187.97,187.88,2.54270644]
[1755366805168,35.55120019,188.04,187.92,2.9]
[1755366805169,4.45044953,188.03,187.92,2.9]
[1755366805368,4.45044953,188.03,187.91,2.54270644]
[1755366805369,2.88,187.96,187.91,2.54270644]
[1755366805560,2.88,187.98,187.92,2.9]
[1755366805959,5.316,187.98,187.93,5.3173]
[1755366806271,2.88,187.97,187.92,2.9]
[1755366806772,2.88,188.0,187.91,2.9]
[1755366806970,4.05027907,188.0,187.91,2.9]
[1755366807166,2.88,187.93,187.9,2.9]
[1755366807462,2.88,188.0,187.89,2.9]
[1755366807668,2.88,187.98,187.92,2.9]
[1755366807863,4.45044953,188.02,187.92,2.9]
[1755366807864,2.88,187.96,187.93,2.9]
[1755366808069,2.88,187.95,187.93,2.9]
[1755366809171,2.88,187.95,187.92,2.9]
[1755366809771,8.1968,187.95,187.93,2.9]
[1755366809972,2.88,187.94,187.93,2.9]
[1755366811668,2.88,187.94,187.91,7.86050644]
[1755366811867,2.88,187.93,187.91,7.86050644]
[1755366812469,2.88,187.93,187.92,2.9]
[1755366817467,2.88,187.89,187.87,2.9]
[1755366819075,5.3183,187.9,187.87,2.9]
[1755366819277,2.88,187.89,187.88,2.9]
[1755366821581,5.318,187.91,187.88,2.9]
[1755366821775,2.88,187.9,187.88,2.9]
[1755366822276,2.88,187.97,187.88,2.9]
[1755366822471,2.88,187.95,187.89,2.9]
[1755366824379,2.88,187.93,187.92,2.9]
[1755366824585,2.88,187.94,187.92,2.9]
[1755366824986,2.88,187.94,187.92,5.3176]
[1755366825187,2.88,187.94,187.93,2.9]
[1755366829591,8.1971,187.94,187.93,2.9]
[1755366846305,12.26414787,187.94,187.93,2.9]
[1755366849004,6.94704787,187.94,187.93,2.9]
[1755366851803,6.94704787,187.94,187.93,8.2174]
[1755366852008,3.03,187.99,187.94,2.85]
[1755366852308,4.07038722,187.98,187.97,4.47678396]
[1755366852513,4.07038722,187.98,187.97,9.79298396]
[1755366855307,3.03,188.0,187.97,6.94298396]
[1755366855508,3.03,188.0,187.98,2.85]
[1755366860814,3.03,188.0,187.98,8.1659]
[1755366861014,3.03,188.0,187.99,2.93]
[1755366865412,8.3454,188.0,187.97,1.62678396]
[1755366865614,3.11,187.99,187.97,4.55678396]
[1755366866016,3.11,187.99,187.97,1.62678396]
[1755366866315,3.11,187.99,187.98,2.93]
[1755366870218,8.4257,187.99,187.98,2.93]
[1755366870612,8.4257,187.99,187.97,4.55678396]
[1755366870813,3.11,187.98,187.97,4.55678396]
[1755366875019,3.11,187.98,187.95,2.93]
[1755366875213,3.11,187.98,187.93,1.62678396]
[1755366875419,3.11,187.98,187.94,2.93]
[1755366875717,3.11,187.95,187.94,2.93]
[1755366881125,3.11,187.96,187.94,2.93]
[1755366883930,3.11,187.96,187.95,2.93]
[1755366885229,8.4265,187.96,187.95,2.93]
[1755366894343,12.48094831,187.96,187.95,2.93]
[1755366900747,5.3171,187.94,187.92,3.04]
[1755366900952,3.07,187.93,187.92,4.66678396]
[1755366901153,8.3871,187.94,187.93,3.04]
[1755366901455,3.07,187.94,187.93,3.04]
[1755366903051,8.3869,187.95,187.93,3.04]
[1755366903546,5.3169,187.95,187.93,3.04]
[1755366903754,3.07,187.94,187.93,3.04]
[1755366908462,8.3866,187.96,187.94,3.04]
[1755366908761,5.3166,187.96,187.94,3.04]
[1755366908962,3.07,187.95,187.94,3.04]
[1755366910361,3.07,187.95,187.93,8.3574]
[1755366910566,3.07,187.95,187.92,1.62678396]
[1755366910567,3.07,187.95,187.94,3.04]
[1755366912262,7.13331512,187.95,187.94,3.04]
[1755366912464,7.13331512,187.95,187.94,8.3571]
[1755366913066,3.07,187.95,187.94,3.04]
[1755366914269,7.13463234,187.95,187.94,3.04]
[1755366918467,4.06463234,187.95,187.93,5.3173]
[1755366918668,3.02,187.93,187.92,6.94438396]
[1755366919265,3.02,187.93,187.92,9.87438396]
[1755366924278,3.02,187.94,187.91,5.06926]
[1755366924576,3.02,187.92,187.91,5.06926]
[1755366924780,7.0924142,187.92,187.91,7.99926]
[1755366927278,12.4101142,187.92,187.91,5.06926]
[1755366927579,14.03689816,187.92,187.91,5.06926]
[1755366933287,12.4101142,187.92,187.91,7.99926]
[1755366933886,4.0724142,187.92,187.91,7.99926]
[1755366934188,8.3374,187.94,187.91,6.69604396]
[1755366934381,4.08630364,187.93,187.91,6.69604396]
[1755366934583,8.3374,187.94,187.92,2.93]
[1755366934784,4.0862388,187.93,187.92,2.93]
[1755366935490,3.02,187.93,187.92,2.93]
[1755366936186,8.3369,187.95,187.92,2.93]
[1755366936484,7.10600543,187.94,187.92,2.93]
[1755366936688,3.02,187.93,187.92,2.93]
[1755366937086,5.3169,187.95,187.92,2.93]
[1755366937285,7.105933,187.94,187.92,2.93]
[1755366937583,3.02,187.94,187.92,8.2477]
[1755366937789,3.02,187.94,187.93,2.93]
[1755366937989,7.1058844,187.94,187.93,2.93]
[1755366941089,4.0858844,187.94,187.93,2.93]
[1755366941394,8.3366,187.96,187.93,2.93]
[1755366941593,4.08598996,187.95,187.93,2.93]
[1755366941791,8.3366,187.96,187.93,2.93]
[1755366941992,4.08598995,187.95,187.93,2.93]
[1755366942194,3.02,187.96,187.93,2.93]
[1755366942392,4.08594775,187.95,187.93,2.93]
[1755366942695,5.3164,187.97,187.93,2.93]
[1755366942895,3.02,187.95,187.93,2.93]
[1755366944795,3.02,187.94,187.93,2.93]
[1755366948096,3.02,187.94,187.93,4.55678396]
[1755366953598,7.10631976,187.94,187.91,8.19926]
[1755366953803,3.02,187.94,187.91,8.19926]
[1755366954704,4.08675781,187.93,187.91,8.19926]
[1755366954905,2.97,187.92,187.91,8.19926]
[1755366956409,8.2877,187.92,187.91,8.19926]
[1755366957310,8.2877,187.92,187.91,5.06926]
[1755366960714,8.2877,187.92,187.91,8.19926]
[1755366961010,12.37709199,187.92,187.91,8.19926]
[1755366961312,2.97,187.94,187.92,3.13]
[1755366961921,4.47461096,187.98,187.92,3.13]
[1755366962109,2.97,187.96,187.94,3.13]
[1755366962308,4.08912543,187.95,187.94,3.13]
[1755366963006,4.08899167,187.95,187.94,3.13]
[1755366963517,7.05899167,187.95,187.94,3.13]
[1755366965216,4.08899167,187.95,187.94,3.13]
[1755366965916,7.05899167,187.95,187.94,3.13]
[1755366970021,7.05899167,187.95,187.92,5.3176]
[1755366970321,2.97,187.95,187.94,3.13]
[1755366970617,7.05971459,187.95,187.94,3.13]
[1755366971719,7.05977621,187.95,187.94,3.13]
[1755366975215,4.08977621,187.95,187.93,3.13]
[1755366975523,7.05977621,187.94,187.93,3.13]
[1755366977523,9.40707621,187.94,187.92,1.62678396]
[1755366977826,2.97,187.93,187.92,4.75678396]
[1755366978025,2.97,187.93,187.92,3.13]
[1755366978327,12.38220351,187.93,187.92,3.13]
[1755366979236,8.3777,187.92,187.91,5.06926]
[1755366979529,12.47250351,187.92,187.91,7.88926]
[1755366981827,4.09480351,187.92,187.91,7.88926]
[1755366982032,3.06,187.97,187.91,7.88926]
[1755366982232,4.09469386,187.96,187.94,1.62678396]
[1755366982433,3.06,187.96,187.95,2.82]
[1755366982632,12.4712523,187.96,187.95,2.82]
[1755366984031,7.1547523,187.96,187.95,2.82]
[1755367012348,4.0947523,187.96,187.95,9.87358396]
[1755367015046,7.0547523,187.96,187.95,9.87358396]
[1755367019247,4.0947523,187.96,187.95,9.87358396]
[1755367020054,7.0547523,187.96,187.95,9.87358396]
[1755367020351,4.0947523,187.96,187.95,9.87358396]
[1755367020547,4.47628403,188.01,187.98,2.93]
[1755367020753,2.96,187.99,187.98,2.93]
[1755367021551,2.96,187.99,187.97,4.55678396]
[1755367021755,2.96,187.98,187.97,2.93]
[1755367021954,2.96,187.98,187.96,2.93]
[1755367022249,8.276,187.98,187.96,2.93]
[1755367022455,2.96,187.97,187.96,2.93]
[1755367022953,2.96,187.98,187.97,2.93]
[1755367023155,2.96,187.98,187.97,4.55678396]
[1755367024949,5.3154,188.0,187.97,4.55678396]
[1755367025256,2.96,187.98,187.97,2.93]